[Event "*** SCC Grand Prix: Titled Tuesday Blitz"]
[Site "Chess.com"]
[Date "2020.09.08"]
[Round "3"]
[White "tylityli"]
[Black "adiosabu"]
[Result "0-1"]
[WhiteElo "2238"]
[BlackElo "2500"]
[TimeControl "180+1"]
[EndTime "10:29:58 PDT"]
[Termination "adiosabu won by resignation"]

1. d4 {[%clk 0:03:00.9]} 1... d5 {[%clk 0:02:59]} 2. c4 {[%clk 0:02:55.4]} 2...
e6 {[%clk 0:02:58.8]} 3. Nc3 {[%clk 0:02:54.5]} 3... Nf6 {[%clk 0:02:58.1]} 4.
cxd5 {[%clk 0:02:53.7]} 4... exd5 {[%clk 0:02:57.3]} 5. Bg5 {[%clk 0:02:53.6]}
5... Be7 {[%clk 0:02:57.6]} 6. e3 {[%clk 0:02:52.6]} 6... c6 {[%clk 0:02:56.8]}
7. Bd3 {[%clk 0:02:52.7]} 7... Nbd7 {[%clk 0:02:56]} 8. Nge2 {[%clk 0:02:48.8]}
8... h6 {[%clk 0:02:55.3]} 9. Bh4 {[%clk 0:02:48.1]} 9... Nh5 {[%clk 0:02:55.9]}
10. Bxe7 {[%clk 0:02:44.8]} 10... Qxe7 {[%clk 0:02:56.8]} 11. g4 {[%clk
0:02:43.6]} 11... Nhf6 {[%clk 0:02:54.8]} 12. h3 {[%clk 0:02:43.8]} 12... Nb6
{[%clk 0:02:53]} 13. Qc2 {[%clk 0:02:44]} 13... Be6 {[%clk 0:02:52]} 14. O-O-O
{[%clk 0:02:43.5]} 14... O-O-O {[%clk 0:02:51.8]} 15. Nf4 {[%clk 0:02:35]} 15...
Kb8 {[%clk 0:02:51]} 16. Kb1 {[%clk 0:02:25.5]} 16... Bc8 {[%clk 0:01:54.2]} 17.
Qb3 {[%clk 0:02:23.6]} 17... h5 {[%clk 0:01:50.1]} 18. g5 {[%clk 0:02:21.8]}
18... Ne4 {[%clk 0:01:50.1]} 19. Bxe4 {[%clk 0:02:18.9]} 19... dxe4 {[%clk
0:01:50]} 20. h4 {[%clk 0:02:18.7]} 20... Bf5 {[%clk 0:01:33.4]} 21. a4 {[%clk
0:02:13.6]} 21... f6 {[%clk 0:01:27.3]} 22. a5 {[%clk 0:02:02.8]} 22... Nd5
{[%clk 0:01:23.3]} 23. Nfxd5 {[%clk 0:01:44.3]} 23... cxd5 {[%clk 0:01:24.2]}
24. Rdg1 {[%clk 0:01:42.6]} 24... fxg5 {[%clk 0:01:21.1]} 25. Rxg5 {[%clk
0:01:41.3]} 25... g6 {[%clk 0:01:21]} 26. a6 {[%clk 0:01:27.9]} 26... Rd6 {[%clk
0:01:13.4]} 27. axb7 {[%clk 0:01:18.5]} 27... Qxb7 {[%clk 0:00:54.8]} 28. Qxb7+
{[%clk 0:01:11.3]} 28... Kxb7 {[%clk 0:00:55.7]} 29. Kc2 {[%clk 0:01:11.3]}
29... Rc8 {[%clk 0:00:52.4]} 30. Ra1 {[%clk 0:01:09.2]} 30... Kb6 {[%clk
0:00:36.5]} 31. Kb3 {[%clk 0:01:01.5]} 31... Rd7 {[%clk 0:00:33.3]} 32. Na4+
{[%clk 0:01:00.9]} 32... Kb5 {[%clk 0:00:33.5]} 33. Nc5 {[%clk 0:01:00.6]} 33...
Rxc5 {[%clk 0:00:33.4]} 34. dxc5 {[%clk 0:00:59.7]} 34... Kxc5 {[%clk
0:00:33.9]} 35. Rc1+ {[%clk 0:00:57.1]} 35... Kd6 {[%clk 0:00:33.4]} 36. Rcg1
{[%clk 0:00:52.4]} 36... d4 {[%clk 0:00:29.5]} 37. exd4 {[%clk 0:00:51.3]} 37...
Kd5 {[%clk 0:00:28.7]} 38. Rxf5+ {[%clk 0:00:34.3]} 38... gxf5 {[%clk
0:00:27.1]} 39. Rg5 {[%clk 0:00:34.3]} 39... Rf7 {[%clk 0:00:27.1]} 40. Rxh5
{[%clk 0:00:33.1]} 40... Kxd4 {[%clk 0:00:26.8]} 41. Rh8 {[%clk 0:00:28.9]}
41... Kd3 {[%clk 0:00:25.3]} 42. h5 {[%clk 0:00:27.2]} 42... f4 {[%clk
0:00:20.5]} 43. h6 {[%clk 0:00:27.3]} 43... Ke2 {[%clk 0:00:17.7]} 44. Re8
{[%clk 0:00:23]} 44... e3 {[%clk 0:00:14.7]} 45. fxe3 {[%clk 0:00:22.1]} 45...
f3 {[%clk 0:00:15.1]} 46. Rg8 {[%clk 0:00:16.8]} 46... f2 {[%clk 0:00:14.3]} 47.
Rg2 {[%clk 0:00:14.9]} 47... Kxe3 {[%clk 0:00:14.6]} 48. Rg3+ {[%clk 0:00:12.9]}
48... Ke2 {[%clk 0:00:13.5]} 49. Rh3 {[%clk 0:00:12.5]} 49... f1=Q {[%clk
0:00:11.8]} 50. h7 {[%clk 0:00:12.5]} 50... Qxh3+ {[%clk 0:00:11.3]} 0-1

[Event "*** SCC Grand Prix: Titled Tuesday Blitz"]
[Site "Chess.com"]
[Date "2020.09.08"]
[Round "3"]
[White "MarkoPe"]
[Black "MF1966Idrisov"]
[Result "0-1"]
[WhiteElo "2170"]
[BlackElo "2399"]
[TimeControl "180+1"]
[EndTime "10:29:58 PDT"]
[Termination "MF1966Idrisov won on time"]

1. e4 {[%clk 0:03:00.9]} 1... d5 {[%clk 0:02:59.1]} 2. exd5 {[%clk 0:03:00.7]}
2... Qxd5 {[%clk 0:02:59.2]} 3. Nc3 {[%clk 0:03:01]} 3... Qd6 {[%clk 0:02:59.1]}
4. d4 {[%clk 0:02:59.6]} 4... Nf6 {[%clk 0:02:58.9]} 5. Nf3 {[%clk 0:02:42.4]}
5... a6 {[%clk 0:02:58.1]} 6. Bg5 {[%clk 0:02:37.5]} 6... Bg4 {[%clk 0:02:57.3]}
7. Qd2 {[%clk 0:02:33.6]} 7... Bxf3 {[%clk 0:02:52.4]} 8. gxf3 {[%clk
0:02:33.6]} 8... e6 {[%clk 0:02:52.4]} 9. O-O-O {[%clk 0:02:31]} 9... Be7 {[%clk
0:02:49.9]} 10. Ne4 {[%clk 0:02:27.8]} 10... Nxe4 {[%clk 0:02:47.9]} 11. fxe4
{[%clk 0:02:28.7]} 11... Nd7 {[%clk 0:02:34.3]} 12. Bxe7 {[%clk 0:02:27.4]}
12... Qxe7 {[%clk 0:02:33.6]} 13. f3 {[%clk 0:02:27.1]} 13... O-O-O {[%clk
0:02:29.7]} 14. Rg1 {[%clk 0:02:23.8]} 14... g6 {[%clk 0:02:28.6]} 15. Kb1
{[%clk 0:02:23.6]} 15... Kb8 {[%clk 0:02:27.9]} 16. Qc3 {[%clk 0:02:21.4]} 16...
Nb6 {[%clk 0:02:26.6]} 17. Be2 {[%clk 0:02:12.3]} 17... Rd7 {[%clk 0:02:18.8]}
18. Qb3 {[%clk 0:01:44.3]} 18... Rhd8 {[%clk 0:02:10.1]} 19. c3 {[%clk
0:01:44.7]} 19... Qh4 {[%clk 0:02:09.3]} 20. a4 {[%clk 0:01:14.3]} 20... Ka7
{[%clk 0:02:07.8]} 21. a5 {[%clk 0:01:12.5]} 21... Nc8 {[%clk 0:02:05.2]} 22.
Qc2 {[%clk 0:00:31.6]} 22... Qh5 {[%clk 0:01:38.3]} 23. b4 {[%clk 0:00:26.6]}
23... Nd6 {[%clk 0:01:31.1]} 24. f4 {[%clk 0:00:26.5]} 24... Qxh2 {[%clk
0:01:26.3]} 25. Rdf1 {[%clk 0:00:17.6]} 25... h5 {[%clk 0:01:09.5]} 26. Rh1
{[%clk 0:00:16.7]} 26... Qg2 {[%clk 0:01:08.9]} 27. Bf3 {[%clk 0:00:17.1]} 27...
Qxc2+ {[%clk 0:01:08.4]} 28. Kxc2 {[%clk 0:00:18]} 28... b5 {[%clk 0:00:59.8]}
29. Kd3 {[%clk 0:00:17.2]} 29... Nc4 {[%clk 0:00:59.4]} 30. Ke2 {[%clk
0:00:16.1]} 30... Rh8 {[%clk 0:00:58.1]} 31. f5 {[%clk 0:00:14.9]} 31... exf5
{[%clk 0:00:55.4]} 32. exf5 {[%clk 0:00:15.2]} 32... Re8+ {[%clk 0:00:53.5]} 33.
Kf2 {[%clk 0:00:14.9]} 33... Nd2 {[%clk 0:00:51]} 34. Re1 {[%clk 0:00:13.6]}
34... Rde7 {[%clk 0:00:50.9]} 35. Rxe7 {[%clk 0:00:12.8]} 35... Rxe7 {[%clk
0:00:50.5]} 36. fxg6 {[%clk 0:00:12.8]} 36... fxg6 {[%clk 0:00:49.5]} 37. Bg2
{[%clk 0:00:10.7]} 37... Ne4+ {[%clk 0:00:46.9]} 38. Kf3 {[%clk 0:00:09.1]}
38... Nxc3 {[%clk 0:00:45.6]} 39. Rc1 {[%clk 0:00:06.4]} 39... Na2 {[%clk
0:00:43.7]} 40. Rc6 {[%clk 0:00:06.1]} 40... g5 {[%clk 0:00:36.8]} 41. Rh6
{[%clk 0:00:04.7]} 41... Nxb4 {[%clk 0:00:32.3]} 42. Rxh5 {[%clk 0:00:04.5]}
42... Rg7 {[%clk 0:00:32]} 43. Kg4 {[%clk 0:00:03.8]} 43... Nc2 {[%clk
0:00:31.7]} 44. d5 {[%clk 0:00:02.2]} 44... Ne3+ {[%clk 0:00:31.6]} 45. Kg3
{[%clk 0:00:02.2]} 45... Nxg2 {[%clk 0:00:31.6]} 46. Kxg2 {[%clk 0:00:03.1]}
46... g4 {[%clk 0:00:31]} 47. Kg3 {[%clk 0:00:03.3]} 47... Kb7 {[%clk
0:00:29.5]} 48. Rh6 {[%clk 0:00:03.6]} 48... Rd7 {[%clk 0:00:29.2]} 49. Kxg4
{[%clk 0:00:02.5]} 49... Rxd5 {[%clk 0:00:29.1]} 50. Kf4 {[%clk 0:00:02.5]}
50... Rd4+ {[%clk 0:00:29.1]} 51. Ke5 {[%clk 0:00:02.8]} 51... Ra4 {[%clk
0:00:29]} 52. Kd5 {[%clk 0:00:03]} 52... Rxa5 {[%clk 0:00:28.9]} 53. Kc5 {[%clk
0:00:03.3]} 53... Ra4 {[%clk 0:00:28.5]} 0-1

[Event "*** SCC Grand Prix: Titled Tuesday Blitz"]
[Site "Chess.com"]
[Date "2020.09.08"]
[Round "3"]
[White "reniite"]
[Black "VladimirBugayev"]
[Result "0-1"]
[WhiteElo "1890"]
[BlackElo "2278"]
[TimeControl "180+1"]
[EndTime "10:29:58 PDT"]
[Termination "VladimirBugayev won by resignation"]

1. e4 {[%clk 0:03:00.9]} 1... c6 {[%clk 0:02:59.7]} 2. d4 {[%clk 0:02:57.1]}
2... d5 {[%clk 0:03:00]} 3. Nc3 {[%clk 0:02:55.5]} 3... dxe4 {[%clk 0:03:00.1]}
4. Nxe4 {[%clk 0:02:55.3]} 4... Nf6 {[%clk 0:03:00.7]} 5. Nxf6+ {[%clk
0:02:54.7]} 5... exf6 {[%clk 0:03:01.1]} 6. c3 {[%clk 0:02:55.6]} 6... Bd6
{[%clk 0:02:59.7]} 7. Bd3 {[%clk 0:02:55.7]} 7... O-O {[%clk 0:02:58.5]} 8. Qc2
{[%clk 0:02:54.3]} 8... h5 {[%clk 0:02:58.2]} 9. Ne2 {[%clk 0:02:35.3]} 9... h4
{[%clk 0:02:58]} 10. h3 {[%clk 0:02:33.1]} 10... Qc7 {[%clk 0:02:54.8]} 11. Be3
{[%clk 0:02:20.3]} 11... Be6 {[%clk 0:02:53.5]} 12. Bh7+ {[%clk 0:02:03.4]}
12... Kh8 {[%clk 0:02:51.8]} 13. Qe4 {[%clk 0:02:02.9]} 13... g5 {[%clk
0:02:50]} 14. Bf5 {[%clk 0:01:58.1]} 14... Re8 {[%clk 0:02:45.9]} 15. Bxe6
{[%clk 0:01:37.3]} 15... fxe6 {[%clk 0:02:34.6]} 16. Qg4 {[%clk 0:01:36]} 16...
Qh7 {[%clk 0:02:32.1]} 17. g3 {[%clk 0:01:25.6]} 17... Nd7 {[%clk 0:02:23.5]}
18. O-O-O {[%clk 0:01:08]} 18... Nf8 {[%clk 0:01:54.3]} 19. f4 {[%clk
0:01:02.5]} 19... Qf5 {[%clk 0:01:50.4]} 20. fxg5 {[%clk 0:00:51.8]} 20... fxg5
{[%clk 0:01:40.4]} 21. Qh5+ {[%clk 0:00:43.5]} 21... Nh7 {[%clk 0:01:36.5]} 22.
gxh4 {[%clk 0:00:43.7]} 22... Qe4 {[%clk 0:01:34.6]} 23. Bxg5 {[%clk 0:00:35.1]}
23... Rf8 {[%clk 0:01:34.6]} 24. Rhe1 {[%clk 0:00:34.1]} 24... Rf2 {[%clk
0:01:33.6]} 25. Bd2 {[%clk 0:00:32.4]} 25... Raf8 {[%clk 0:00:59.1]} 26. Nf4
{[%clk 0:00:26.1]} 26... Qf5 {[%clk 0:00:47.1]} 27. Ng6+ {[%clk 0:00:19.9]}
27... Kg7 {[%clk 0:00:46.9]} 28. Qxf5 {[%clk 0:00:17.3]} 28... R8xf5 {[%clk
0:00:46.6]} 29. Rg1 {[%clk 0:00:16.5]} 29... Bh2 {[%clk 0:00:39.9]} 30. Ne7+
{[%clk 0:00:15]} 30... Bxg1 {[%clk 0:00:38.5]} 31. Nxf5+ {[%clk 0:00:15.9]}
31... exf5 {[%clk 0:00:33.9]} 32. Rxg1+ {[%clk 0:00:16.6]} 32... Kf6 {[%clk
0:00:34.2]} 33. Re1 {[%clk 0:00:16.6]} 33... f4 {[%clk 0:00:32.5]} 34. Kd1
{[%clk 0:00:16.9]} 34... Kf5 {[%clk 0:00:31.8]} 35. Rg1 {[%clk 0:00:17]} 35...
Nf6 {[%clk 0:00:30.5]} 36. Ke1 {[%clk 0:00:17.1]} 36... Ne4 {[%clk 0:00:27.7]}
37. h5 {[%clk 0:00:15.3]} 37... Rxd2 {[%clk 0:00:25.7]} 38. h6 {[%clk
0:00:15.6]} 38... f3 {[%clk 0:00:23.6]} 39. Rf1 {[%clk 0:00:13.1]} 39... Re2+
{[%clk 0:00:18.9]} 40. Kd1 {[%clk 0:00:13.1]} 40... Nf2+ {[%clk 0:00:18.2]} 41.
Kc1 {[%clk 0:00:12.6]} 41... Nd3+ {[%clk 0:00:16.2]} 42. Kd1 {[%clk 0:00:12.6]}
42... Nxb2+ {[%clk 0:00:15.3]} 43. Kc1 {[%clk 0:00:12.7]} 43... Nd3+ {[%clk
0:00:15.6]} 44. Kd1 {[%clk 0:00:13.4]} 44... Kf4 {[%clk 0:00:15.4]} 45. h7
{[%clk 0:00:13.2]} 45... Re8 {[%clk 0:00:15.9]} 46. Kd2 {[%clk 0:00:13.2]} 46...
Nb2 {[%clk 0:00:13.7]} 47. Kc2 {[%clk 0:00:12.9]} 47... Nc4 {[%clk 0:00:13.6]}
48. Kd3 {[%clk 0:00:13.8]} 48... Ne3 {[%clk 0:00:13.6]} 49. Re1 {[%clk
0:00:14.5]} 49... f2 {[%clk 0:00:11.3]} 50. Rxe3 {[%clk 0:00:14.9]} 50... f1=Q+
{[%clk 0:00:11]} 51. Kc2 {[%clk 0:00:14.4]} 51... Qf2+ {[%clk 0:00:09.5]} 52.
Kb3 {[%clk 0:00:14.3]} 52... Qxe3 {[%clk 0:00:09.5]} 0-1

[Event "*** SCC Grand Prix: Titled Tuesday Blitz"]
[Site "Chess.com"]
[Date "2020.09.08"]
[Round "3"]
[White "abykhovsky"]
[Black "LPSupi"]
[Result "1-0"]
[WhiteElo "2648"]
[BlackElo "2854"]
[TimeControl "180+1"]
[EndTime "10:30:00 PDT"]
[Termination "abykhovsky won on time"]

1. Nf3 {[%clk 0:03:00.2]} 1... d5 {[%clk 0:02:59]} 2. g3 {[%clk 0:02:59.3]} 2...
Nd7 {[%clk 0:02:57.9]} 3. Bg2 {[%clk 0:02:59.3]} 3... e5 {[%clk 0:02:58.1]} 4.
O-O {[%clk 0:02:58.6]} 4... Ngf6 {[%clk 0:02:58.3]} 5. d3 {[%clk 0:02:57.2]}
5... c6 {[%clk 0:02:58.3]} 6. c4 {[%clk 0:02:57.4]} 6... dxc4 {[%clk 0:02:57.2]}
7. dxc4 {[%clk 0:02:58.3]} 7... Bc5 {[%clk 0:02:57.4]} 8. Nc3 {[%clk 0:02:58.2]}
8... Qe7 {[%clk 0:02:49.9]} 9. b3 {[%clk 0:02:53.4]} 9... O-O {[%clk 0:02:44.9]}
10. Qc2 {[%clk 0:02:53.7]} 10... Re8 {[%clk 0:02:41.8]} 11. Bb2 {[%clk
0:02:34.7]} 11... e4 {[%clk 0:02:18.9]} 12. Ng5 {[%clk 0:02:26.4]} 12... e3
{[%clk 0:02:18.6]} 13. f4 {[%clk 0:02:25.6]} 13... Nf8 {[%clk 0:02:04.3]} 14.
Rad1 {[%clk 0:02:16.5]} 14... Ng4 {[%clk 0:01:57.5]} 15. Nce4 {[%clk 0:01:23.4]}
15... Nf2 {[%clk 0:01:54.9]} 16. Rc1 {[%clk 0:01:19.4]} 16... Bf5 {[%clk
0:01:48.8]} 17. Qc3 {[%clk 0:01:17.9]} 17... f6 {[%clk 0:01:49]} 18. Nxc5 {[%clk
0:01:16.9]} 18... Qxc5 {[%clk 0:01:48.8]} 19. Nf3 {[%clk 0:01:13.7]} 19... Rad8
{[%clk 0:01:48.5]} 20. b4 {[%clk 0:01:07.5]} 20... Qe7 {[%clk 0:01:46.9]} 21.
Nd4 {[%clk 0:00:58.1]} 21... Bg4 {[%clk 0:01:39]} 22. Rfe1 {[%clk 0:00:51.9]}
22... h5 {[%clk 0:01:34.7]} 23. h4 {[%clk 0:00:45.9]} 23... Qf7 {[%clk
0:01:16.2]} 24. c5 {[%clk 0:00:36.1]} 24... Qg6 {[%clk 0:01:12.3]} 25. Kh2
{[%clk 0:00:26.7]} 25... Bf5 {[%clk 0:00:56.5]} 26. Nxf5 {[%clk 0:00:18.6]}
26... Qxf5 {[%clk 0:00:56]} 27. b5 {[%clk 0:00:18.8]} 27... Rd2 {[%clk
0:00:51.2]} 28. bxc6 {[%clk 0:00:16.9]} 28... bxc6 {[%clk 0:00:52.1]} 29. Qb3+
{[%clk 0:00:16.8]} 29... Kh7 {[%clk 0:00:32.3]} 30. Bc3 {[%clk 0:00:16.8]} 30...
Ng6 {[%clk 0:00:23.8]} 31. Qb1 {[%clk 0:00:13]} 31... Qxb1 {[%clk 0:00:15.2]}
32. Rxb1 {[%clk 0:00:13]} 32... Rxa2 {[%clk 0:00:16.1]} 33. Bxc6 {[%clk
0:00:12.7]} 33... Rc8 {[%clk 0:00:16.3]} 34. Bd5 {[%clk 0:00:13.1]} 34... Ra3
{[%clk 0:00:16.1]} 35. Bb4 {[%clk 0:00:13.2]} 35... Ra4 {[%clk 0:00:15.5]} 36.
Bb7 {[%clk 0:00:11.5]} 36... Rc7 {[%clk 0:00:13.9]} 37. c6 {[%clk 0:00:11.9]}
37... Ne4 {[%clk 0:00:12.1]} 38. Red1 {[%clk 0:00:09.5]} 38... a5 {[%clk
0:00:06.2]} 39. Rd7 {[%clk 0:00:09.2]} 39... Rxb4 {[%clk 0:00:02.5]} 40. Rxb4
{[%clk 0:00:06.9]} 40... axb4 {[%clk 0:00:03.4]} 41. Rxc7 {[%clk 0:00:07.5]}
41... b3 {[%clk 0:00:04]} 42. Ba6 {[%clk 0:00:08.1]} 42... Nc5 {[%clk
0:00:04.2]} 43. Bc4 {[%clk 0:00:07.1]} 43... b2 {[%clk 0:00:04.3]} 44. Ba2
{[%clk 0:00:07.4]} 44... Nf8 {[%clk 0:00:02.7]} 45. Rb7 {[%clk 0:00:07.1]} 45...
Nfe6 {[%clk 0:00:02.4]} 46. Rxb2 {[%clk 0:00:06.2]} 46... Nc7 {[%clk 0:00:02]}
47. Bc4 {[%clk 0:00:05.1]} 1-0

[Event "*** SCC Grand Prix: Titled Tuesday Blitz"]
[Site "Chess.com"]
[Date "2020.09.08"]
[Round "3"]
[White "kot60"]
[Black "vovachesss"]
[Result "0-1"]
[WhiteElo "2410"]
[BlackElo "2679"]
[TimeControl "180+1"]
[EndTime "10:30:01 PDT"]
[Termination "vovachesss won on time"]

1. e4 {[%clk 0:03:00.9]} 1... c6 {[%clk 0:03:00.3]} 2. d4 {[%clk 0:03:00.5]}
2... d5 {[%clk 0:03:01.2]} 3. f3 {[%clk 0:03:00.8]} 3... g6 {[%clk 0:02:59.9]}
4. c3 {[%clk 0:02:59.7]} 4... Bg7 {[%clk 0:03:00]} 5. Be3 {[%clk 0:02:52.4]}
5... Nd7 {[%clk 0:02:50.1]} 6. e5 {[%clk 0:02:45.9]} 6... h5 {[%clk 0:02:47.4]}
7. Be2 {[%clk 0:02:32.5]} 7... Nh6 {[%clk 0:02:45.7]} 8. g4 {[%clk 0:02:32]}
8... hxg4 {[%clk 0:02:41.7]} 9. fxg4 {[%clk 0:02:31.9]} 9... f6 {[%clk 0:02:34]}
10. exf6 {[%clk 0:02:25]} 10... exf6 {[%clk 0:02:32.5]} 11. Nh3 {[%clk
0:02:16.8]} 11... Nf8 {[%clk 0:02:31.2]} 12. Nf2 {[%clk 0:02:12.7]} 12... Be6
{[%clk 0:02:28.6]} 13. Nd2 {[%clk 0:02:07.8]} 13... Qd7 {[%clk 0:02:28.5]} 14.
Nb3 {[%clk 0:02:06.1]} 14... b6 {[%clk 0:02:06.7]} 15. h3 {[%clk 0:02:01.7]}
15... Nf7 {[%clk 0:01:51.8]} 16. Qd2 {[%clk 0:01:59.1]} 16... Nd6 {[%clk
0:01:50]} 17. O-O-O {[%clk 0:01:56.1]} 17... a5 {[%clk 0:01:44.3]} 18. Kb1
{[%clk 0:01:47.7]} 18... a4 {[%clk 0:01:42.1]} 19. Nc1 {[%clk 0:01:47.3]} 19...
f5 {[%clk 0:01:17.8]} 20. gxf5 {[%clk 0:01:37]} 20... Bxf5+ {[%clk 0:01:17.8]}
21. Bd3 {[%clk 0:01:35]} 21... Ne6 {[%clk 0:01:09.6]} 22. Rhe1 {[%clk
0:01:31.2]} 22... b5 {[%clk 0:00:48.9]} 23. Bf4 {[%clk 0:01:27.2]} 23... O-O
{[%clk 0:00:39.9]} 24. Bxd6 {[%clk 0:01:17.1]} 24... Qxd6 {[%clk 0:00:40.2]} 25.
Ng4 {[%clk 0:01:14.7]} 25... a3 {[%clk 0:00:27.1]} 26. b3 {[%clk 0:01:12.5]}
26... b4 {[%clk 0:00:27.3]} 27. Bxf5 {[%clk 0:01:08.1]} 27... gxf5 {[%clk
0:00:13.6]} 28. Ne5 {[%clk 0:01:07.3]} 28... bxc3 {[%clk 0:00:12.8]} 29. Qxc3
{[%clk 0:01:07.1]} 29... Rae8 {[%clk 0:00:12.1]} 30. Ncd3 {[%clk 0:01:02.1]}
30... c5 {[%clk 0:00:11.1]} 31. dxc5 {[%clk 0:01:00.2]} 31... Qc7 {[%clk
0:00:11.3]} 32. c6 {[%clk 0:00:51.8]} 32... f4 {[%clk 0:00:10.7]} 33. Qb4 {[%clk
0:00:41.6]} 33... f3 {[%clk 0:00:08]} 34. Qb7 {[%clk 0:00:36.8]} 34... Qd6
{[%clk 0:00:06.6]} 35. Qd7 {[%clk 0:00:33.1]} 35... Rd8 {[%clk 0:00:03.7]} 36.
Qxd6 {[%clk 0:00:30.9]} 36... Rxd6 {[%clk 0:00:04.6]} 37. c7 {[%clk 0:00:27.7]}
37... Nxc7 {[%clk 0:00:04.5]} 38. Rf1 {[%clk 0:00:25.4]} 38... Nb5 {[%clk
0:00:04.8]} 39. Kc2 {[%clk 0:00:20.4]} 39... Re6 {[%clk 0:00:04.2]} 40. Rde1
{[%clk 0:00:16.2]} 40... Rc8+ {[%clk 0:00:04.6]} 41. Kd2 {[%clk 0:00:14.7]}
41... Bh6+ {[%clk 0:00:04.8]} 42. Nf4 {[%clk 0:00:10.6]} 42... Rf6 {[%clk
0:00:04.3]} 43. Nd3 {[%clk 0:00:07]} 43... Bxf4+ {[%clk 0:00:04.1]} 44. Nxf4
{[%clk 0:00:06.5]} 44... Rxf4 {[%clk 0:00:05]} 45. Re3 {[%clk 0:00:03.9]} 45...
Rcf8 {[%clk 0:00:04.2]} 46. Rf2 {[%clk 0:00:02.3]} 46... Nd4 {[%clk 0:00:04.5]}
47. Rd3 {[%clk 0:00:01.5]} 47... Ne6 {[%clk 0:00:03.7]} 0-1

[Event "*** SCC Grand Prix: Titled Tuesday Blitz"]
[Site "Chess.com"]
[Date "2020.09.08"]
[Round "3"]
[White "Sergey85Rodchenkov"]
[Black "mmaks007"]
[Result "1-0"]
[WhiteElo "2500"]
[BlackElo "2238"]
[TimeControl "180+1"]
[EndTime "10:30:01 PDT"]
[Termination "Sergey85Rodchenkov won by checkmate"]

1. e4 {[%clk 0:03:00.9]} 1... g6 {[%clk 0:02:59.4]} 2. d4 {[%clk 0:03:00.5]}
2... Bg7 {[%clk 0:02:59.4]} 3. Nf3 {[%clk 0:03:01.1]} 3... d6 {[%clk 0:02:59.9]}
4. c3 {[%clk 0:03:01.4]} 4... Nf6 {[%clk 0:02:58.9]} 5. Bd3 {[%clk 0:03:01.5]}
5... O-O {[%clk 0:02:57.6]} 6. O-O {[%clk 0:03:01.5]} 6... Nc6 {[%clk
0:02:56.1]} 7. Re1 {[%clk 0:03:01.4]} 7... Bg4 {[%clk 0:02:52.8]} 8. Nbd2 {[%clk
0:03:00.2]} 8... e5 {[%clk 0:02:52.1]} 9. h3 {[%clk 0:02:59]} 9... Bxf3 {[%clk
0:02:47]} 10. Nxf3 {[%clk 0:02:59]} 10... Nd7 {[%clk 0:02:46]} 11. dxe5 {[%clk
0:02:54.6]} 11... Ncxe5 {[%clk 0:02:41.8]} 12. Nxe5 {[%clk 0:02:51.1]} 12...
Nxe5 {[%clk 0:02:40.4]} 13. Bc2 {[%clk 0:02:46.1]} 13... Qe7 {[%clk 0:02:31.1]}
14. f4 {[%clk 0:02:39.9]} 14... Nc6 {[%clk 0:02:30.7]} 15. Be3 {[%clk
0:02:38.2]} 15... Na5 {[%clk 0:02:21.7]} 16. Qd5 {[%clk 0:02:29.4]} 16... Nc6
{[%clk 0:02:17.5]} 17. Rad1 {[%clk 0:02:26.6]} 17... Kh8 {[%clk 0:02:13.1]} 18.
Bc1 {[%clk 0:02:08.6]} 18... Qe6 {[%clk 0:02:12.9]} 19. Bb3 {[%clk 0:02:01.7]}
19... Qxd5 {[%clk 0:02:08.1]} 20. exd5 {[%clk 0:02:01.4]} 20... Na5 {[%clk
0:01:59.6]} 21. Bc2 {[%clk 0:01:59.6]} 21... Rae8 {[%clk 0:01:49.5]} 22. Kf2
{[%clk 0:01:57.6]} 22... Kg8 {[%clk 0:01:42.5]} 23. Bd3 {[%clk 0:01:50.9]} 23...
c5 {[%clk 0:01:14.8]} 24. dxc6 {[%clk 0:01:37.3]} 24... Nxc6 {[%clk 0:01:13.2]}
25. Be4 {[%clk 0:01:27.6]} 25... Rd8 {[%clk 0:01:09.9]} 26. Bd5 {[%clk
0:01:25.7]} 26... Bf6 {[%clk 0:00:51.8]} 27. Be3 {[%clk 0:01:22.8]} 27... a6
{[%clk 0:00:50.4]} 28. Bb6 {[%clk 0:01:19.7]} 28... Rd7 {[%clk 0:00:47.7]} 29.
Kf3 {[%clk 0:01:17.6]} 29... Bd8 {[%clk 0:00:47.2]} 30. Bf2 {[%clk 0:01:11.4]}
30... Kg7 {[%clk 0:00:46.3]} 31. g4 {[%clk 0:01:10.9]} 31... f5 {[%clk
0:00:39.3]} 32. g5 {[%clk 0:01:10.5]} 32... Re7 {[%clk 0:00:31.1]} 33. Bxc6
{[%clk 0:00:58.9]} 33... bxc6 {[%clk 0:00:28.9]} 34. Rxd6 {[%clk 0:00:56.2]}
34... Rxe1 {[%clk 0:00:21.1]} 35. Bxe1 {[%clk 0:00:56.2]} 35... Be7 {[%clk
0:00:18.2]} 36. Rxc6 {[%clk 0:00:54.2]} 36... Rb8 {[%clk 0:00:17.2]} 37. b3
{[%clk 0:00:53.1]} 37... a5 {[%clk 0:00:15]} 38. c4 {[%clk 0:00:52.6]} 38... a4
{[%clk 0:00:13.9]} 39. Bc3+ {[%clk 0:00:52.5]} 39... Kf8 {[%clk 0:00:13.9]} 40.
bxa4 {[%clk 0:00:44.7]} 40... Rb1 {[%clk 0:00:09.6]} 41. Ke2 {[%clk 0:00:39.7]}
41... Rh1 {[%clk 0:00:08.4]} 42. Be5 {[%clk 0:00:32.2]} 42... Rh2+ {[%clk
0:00:06.1]} 43. Kd3 {[%clk 0:00:31]} 43... Rxa2 {[%clk 0:00:06]} 44. Ra6 {[%clk
0:00:31.1]} 44... Ra3+ {[%clk 0:00:06.1]} 45. Kd4 {[%clk 0:00:30.3]} 45... Kf7
{[%clk 0:00:05.2]} 46. Ra7 {[%clk 0:00:26.3]} 46... Ke6 {[%clk 0:00:04.9]} 47.
Ra6+ {[%clk 0:00:25.8]} 47... Kf7 {[%clk 0:00:04.9]} 48. Kd5 {[%clk 0:00:25.9]}
48... Ra2 {[%clk 0:00:03.8]} 49. Ra7 {[%clk 0:00:22.3]} 49... Ke8 {[%clk
0:00:03.8]} 50. Ke6 {[%clk 0:00:21.8]} 50... Bd8 {[%clk 0:00:03.5]} 51. Rxh7
{[%clk 0:00:20.6]} 51... Rxa4 {[%clk 0:00:02.4]} 52. Rh8# {[%clk 0:00:20.3]} 1-0